bitfinex-derivatives/quotes_BTCF0:USTF0_20241221
["timestamp","ask_amount","ask_price","bid_price","bid_amount"]
[1734802217926,0.103,97500.0,97498.0,0.0513]
[1734802218128,0.103,97500.0,97499.0,0.001]
[1734802219529,0.1,97500.0,97490.0,0.0846]
[1734802219732,0.1,97500.0,97490.0,0.001]
[1734802219733,0.051304,97491.0,97490.0,0.001]
[1734802220133,0.051304,97491.0,97489.0,0.18293393]
[1734802220530,0.051305,97489.0,97486.0,0.18293393]
[1734802222029,0.051305,97489.0,97483.0,0.051308]
[1734802223030,0.053305,97489.0,97483.0,0.051308]
[1734802223533,0.053305,97489.0,97483.0,0.052308]
[1734802223737,0.002,97489.0,97487.0,0.051306]
[1734802224933,0.1,97500.0,97499.0,0.0513]
[1734802226737,0.103,97500.0,97499.0,0.0523]
[1734802229035,0.103,97500.0,97499.0,0.001]
[1734802231136,0.103,97500.0,97499.0,0.0523]
[1734802232238,0.153151,97518.0,97517.0,0.051291]
[1734802233440,0.153151,97518.0,97517.0,0.052291]
[1734802233638,0.153151,97518.0,97517.0,0.053291]
[1734802233639,0.154151,97518.0,97517.0,0.053291]
[1734802233837,0.154151,97518.0,97517.0,0.06413615]
[1734802234347,0.001,97518.0,97517.0,0.06413615]
[1734802235243,0.01057173,97530.0,97527.0,0.051285]
[1734802235543,0.051283,97531.0,97527.0,0.051285]
[1734802235736,0.051283,97531.0,97517.0,0.01184515]
[1734802235937,0.051283,97531.0,97528.0,0.051285]
[1734802236443,0.051283,97531.0,97529.0,0.051284]
[1734802240044,0.09880258,97535.0,97519.0,0.3608]
[1734802240236,0.051284,97529.0,97527.0,0.051285]
[1734802241246,0.0919278,97534.0,97519.0,0.3608]
[1734802241438,0.0919278,97534.0,97520.0,0.10127844]
[1734802241638,0.0919278,97534.0,97531.0,0.051283]
[1734802243344,0.15008358,97535.0,97531.0,0.051283]
[1734802243842,0.01050258,97535.0,97533.0,0.051282]
[1734802244038,0.0919278,97538.0,97533.0,0.051282]
[1734802244541,0.10241656,97538.0,97533.0,0.051282]
[1734802245438,0.01048876,97538.0,97533.0,0.051282]
[1734802245638,0.051279,97539.0,97533.0,0.051282]
[1734802245837,0.051279,97539.0,97536.0,0.05128]
[1734802246749,0.06188082,97539.0,97536.0,0.05128]
[1734802247142,0.051281,97535.0,97519.0,0.3608]
[1734802247445,0.051281,97535.0,97530.0,0.051283]
[1734802247756,0.051281,97535.0,97519.0,0.37131301]
[1734802248444,0.051281,97535.0,97534.0,0.051282]
[1734802249049,0.01060182,97539.0,97519.0,0.37131301]
[1734802249050,0.051282,97534.0,97531.0,0.051283]
[1734802249235,0.051282,97533.0,97531.0,0.051283]
[1734802250738,0.051289,97521.0,97519.0,0.3608]
[1734802250945,0.05129,97519.0,97518.0,0.18293393]
[1734802251140,0.051292,97515.0,97514.0,0.18293393]
[1734802252143,0.051292,97515.0,97512.0,0.1756]
[1734802252638,0.051292,97514.0,97512.0,0.1756]
[1734802253055,0.051297,97505.0,97503.0,0.00153826]
[1734802253243,0.3608,97514.0,97501.0,0.0869]
[1734802253244,0.051298,97503.0,97501.0,0.0869]
[1734802254549,0.051301,97497.0,97494.0,0.18293393]
[1734802255752,0.051301,97497.0,97488.0,0.18293393]
[1734802256149,0.051301,97497.0,97496.0,0.00108304]
[1734802257956,0.051309,97482.0,97475.0,0.0869]
[1734802258347,0.05131,97480.0,97475.0,0.0869]
[1734802258854,0.051312,97477.0,97475.0,0.0869]
[1734802260357,0.051312,97477.0,97475.0,0.0879]
[1734802260660,0.3608,97483.0,97475.0,0.0879]
[1734802261247,0.051312,97477.0,97475.0,0.0879]
[1734802261451,0.053312,97477.0,97475.0,0.0879]
[1734802261651,0.053312,97477.0,97475.0,0.001]
[1734802262141,0.051312,97477.0,97475.0,0.001]
[1734802262456,0.051314,97472.0,97463.0,0.1772]
[1734802263251,0.051312,97476.0,97475.0,0.001]
[1734802263860,0.051318,97464.0,97463.0,0.1772]
[1734802264048,0.051318,97464.0,97463.0,0.1802]
[1734802264454,0.051315,97472.0,97463.0,0.1802]
[1734802264648,0.051315,97472.0,97464.0,0.051318]
[1734802264846,0.051316,97470.0,97464.0,0.051318]
[1734802265043,0.051316,97470.0,97463.0,0.1832]
[1734802265754,0.051316,97468.0,97463.0,0.1772]
[1734802265950,0.0902,97482.0,97463.0,0.1772]
[1734802265951,0.3608,97475.0,97463.0,0.1772]
[1734802266163,0.051318,97465.0,97463.0,0.0903]
[1734802266343,9.539e-05,97464.0,97463.0,0.0903]
[1734802266547,9.539e-05,97464.0,97463.0,0.003]
[1734802266745,0.09199539,97464.0,97463.0,0.003]
[1734802266950,0.051323,97456.0,97447.0,0.18293393]
[1734802267258,0.412123,97456.0,97447.0,0.18293393]
[1734802267953,0.412123,97456.0,97446.0,0.0867]
[1734802267954,0.2213,97456.0,97455.0,0.05286203]
[1734802268143,9.539e-05,97464.0,97460.0,0.05132]
[1734802268350,9.539e-05,97464.0,97461.0,0.179]
[1734802268557,0.051319,97463.0,97461.0,0.179]
[1734802270158,0.051319,97463.0,97461.0,0.186]
[1734802270353,9.539e-05,97464.0,97461.0,0.186]
[1734802270561,9.539e-05,97464.0,97461.0,0.23732]
[1734802271763,0.051319,97463.0,97461.0,0.105]
[1734802271962,0.3608,97462.0,97461.0,0.007]
[1734802272155,0.3608,97462.0,97461.0,0.012]
[1734802272856,0.3608,97462.0,97461.0,0.014]
[1734802274065,0.3608,97462.0,97461.0,0.016]
[1734802275457,0.051319,97463.0,97461.0,0.016]
[1734802276259,9.539e-05,97464.0,97462.0,0.3608]
[1734802276459,9.539e-05,97464.0,97463.0,0.0841]
[1734802277768,9.539e-05,97464.0,97463.0,0.0901]
[1734802278862,9.539e-05,97464.0,97463.0,0.0951]
[1734802280571,0.051307,97486.0,97465.0,0.051318]
[1734802280863,0.051307,97486.0,97463.0,0.21374629]
[1734802280864,0.13241604,97488.0,97482.0,0.051309]
[1734802281163,0.13241604,97488.0,97483.0,0.1795]
[1734802281366,0.12209006,97488.0,97483.0,0.1795]
[1734802281576,0.09186241,97490.0,97483.0,0.1795]
[1734802281867,0.09186241,97490.0,97489.0,0.051305]
[1734802282467,0.12209006,97496.0,97489.0,0.051305]
[1734802282468,0.12209006,97496.0,97495.0,0.051302]
[1734802282667,0.12209006,97496.0,97495.0,0.412102]
[1734802283267,0.12209006,97511.0,97495.0,0.3608]
[1734802283466,0.051295,97509.0,97508.0,0.3608]
[1734802283966,0.12209006,97511.0,97509.0,0.051295]
[1734802284172,0.051295,97509.0,97501.0,0.051299]
[1734802284366,0.051295,97509.0,97502.0,0.051298]
[1734802284775,0.001,97511.0,97498.0,0.18293393]
[1734802284776,0.051298,97504.0,97498.0,0.18293393]
[1734802285069,0.001,97509.0,97498.0,0.18293393]
[1734802285273,0.0513,97499.0,97498.0,0.18293393]
[1734802285769,0.0513,97499.0,97495.0,0.3608]
[1734802287071,0.0513,97499.0,97498.0,0.001]
[1734802287468,0.0513,97499.0,97495.0,0.3608]
[1734802287667,0.0523,97499.0,97495.0,0.3608]
[1734802288580,0.06155718,97499.0,97495.0,0.3608]
[1734802288781,0.06255718,97499.0,97495.0,0.3608]
[1734802290067,0.0523,97499.0,97495.0,0.3608]
[1734802292474,0.001,97499.0,97495.0,0.3608]
[1734802293471,0.001,97499.0,97497.0,0.051301]
[1734802294670,0.051296,97507.0,97495.0,0.3608]
[1734802294875,0.001,97499.0,97498.0,0.051301]
[1734802295076,0.001,97499.0,97495.0,0.3608]
[1734802295270,0.051301,97497.0,97495.0,0.3608]
[1734802295474,0.051308,97484.0,97482.0,0.18293393]
[1734802296279,0.3608,97488.0,97477.0,0.18293393]
[1734802296466,0.051311,97479.0,97477.0,0.18293393]
[1734802297072,0.3608,97488.0,97477.0,0.18293393]
[1734802297377,0.05131,97481.0,97477.0,0.18293393]
[1734802297773,0.3608,97488.0,97477.0,0.18293393]
[1734802297976,0.051312,97477.0,97467.0,0.229817]
[1734802298165,0.051314,97473.0,97467.0,0.1785]
[1734802298372,0.001,97479.0,97461.0,0.05132]
[1734802298571,0.051317,97467.0,97461.0,0.05132]
[1734802298772,0.051314,97473.0,97464.0,0.3608]
[1734802299074,0.051314,97473.0,97466.0,0.051317]
[1734802299284,0.051315,97471.0,97464.0,0.3608]
[1734802299675,0.051315,97471.0,97464.0,0.412118]
[1734802300182,0.051307,97486.0,97467.0,0.001]
[1734802300368,0.051307,97486.0,97479.0,0.05131]
[1734802300977,0.051308,97485.0,97479.0,0.05131]
[1734802301277,0.01071846,97488.0,97475.0,0.3608]
[1734802301483,0.051309,97483.0,97475.0,0.3608]
[1734802301779,0.051309,97483.0,97475.0,0.412113]
[1734802302372,0.051309,97483.0,97475.0,0.3608]
[1734802302670,0.051309,97483.0,97476.0,0.051312]
[1734802303477,0.001,97485.0,97475.0,0.3608]
[1734802303782,0.051312,97477.0,97475.0,0.001]
[1734802304375,0.001,97483.0,97475.0,0.001]
[1734802304679,0.001,97483.0,97476.0,0.001]
[1734802304884,0.3608,97489.0,97476.0,0.001]
[1734802305072,0.051311,97478.0,97476.0,0.001]
[1734802305271,0.3608,97489.0,97475.0,0.002]
[1734802305581,0.051307,97485.0,97477.0,0.051311]
[1734802305972,0.3608,97489.0,97477.0,0.051311]
[1734802306280,0.12209006,97495.0,97481.0,0.051309]
[1734802306481,0.12209006,97495.0,97482.0,0.3608]
[1734802307287,0.052305,97489.0,97483.0,0.051308]
[1734802307674,0.051305,97489.0,97483.0,0.051308]
[1734802308476,0.051304,97491.0,97486.0,0.051307]
[1734802309681,0.051308,97484.0,97482.0,0.001]
[1734802309984,0.051308,97484.0,97479.0,0.05131]
[1734802310189,0.001,97489.0,97474.0,0.28612906]
[1734802310190,0.001,97489.0,97474.0,0.27563393]
[1734802310372,0.3608,97488.0,97474.0,0.18293393]
[1734802310679,0.051312,97476.0,97474.0,0.18293393]
[1734802311283,0.2667,97475.0,97474.0,0.18293393]
[1734802311989,0.2667,97475.0,97474.0,0.002]
[1734802312981,0.1756,97475.0,97474.0,0.002]
[1734802313387,0.142313,97475.0,97474.0,0.001]
[1734802313691,0.143313,97475.0,97474.0,0.001]
[1734802314072,0.051316,97469.0,97464.0,0.3608]
[1734802315084,0.092,97475.0,97464.0,0.3608]
[1734802315292,0.051313,97474.0,97464.0,0.3608]
[1734802315487,0.051317,97467.0,97464.0,0.3608]
[1734802315992,0.092,97475.0,97464.0,0.3608]
[1734802316187,0.051318,97465.0,97464.0,0.3628]
[1734802316489,0.051318,97465.0,97464.0,0.006]
[1734802316688,0.051318,97465.0,97464.0,0.004]
[1734802316985,0.051318,97465.0,97464.0,0.009]
[1734802317378,0.051318,97465.0,97464.0,0.006]
[1734802317781,0.3608,97471.0,97464.0,0.006]
[1734802317982,0.091,97475.0,97469.0,0.051315]
[1734802318288,0.051313,97474.0,97469.0,0.051315]
[1734802318684,0.12209006,97475.0,97465.0,0.051318]
[1734802318891,0.12209006,97475.0,97464.0,0.006]
[1734802319193,0.051318,97466.0,97464.0,0.006]
[1734802319390,0.051318,97466.0,97464.0,0.002]
[1734802319585,0.0927,97465.0,97464.0,0.002]
[1734802320185,0.144018,97465.0,97464.0,0.001]
[1734802320685,0.144018,97465.0,97464.0,0.004]
[1734802320878,0.051318,97465.0,97464.0,0.003]
[1734802321194,0.01045853,97476.0,97464.0,0.006]
[1734802321387,0.0927,97477.0,97464.0,0.006]
[1734802321792,0.051315,97471.0,97467.0,0.412117]
[1734802322396,0.12209006,97474.0,97468.0,0.051316]
[1734802322794,0.051314,97473.0,97468.0,0.051316]
[1734802324104,0.052314,97473.0,97468.0,0.051316]
[1734802324312,0.051316,97469.0,97468.0,0.001]
[1734802325700,0.051316,97469.0,97468.0,0.002]
[1734802326110,0.051316,97469.0,97468.0,0.003]
[1734802327806,0.140716,97469.0,97468.0,0.003]
[1734802329411,0.051323,97456.0,97454.0,0.18293393]
[1734802330503,0.3608,97462.0,97452.0,0.18293393]
[1734802330812,0.051324,97454.0,97452.0,0.18293393]
[1734802331120,0.3608,97453.0,97452.0,0.18293393]
[1734802331626,0.3608,97453.0,97452.0,0.04313393]
[1734802331814,0.051326,97449.0,97448.0,0.24457396]
[1734802332008,0.051326,97449.0,97448.0,0.18347744]
[1734802332412,0.051328,97445.0,97443.0,0.24457396]
[1734802332612,0.051332,97438.0,97437.0,0.30604636]
[1734802332807,0.412132,97438.0,97437.0,0.30604636]
[1734802333414,0.412132,97438.0,97437.0,0.09374076]
[1734802333718,0.051343,97417.0,97416.0,0.00056]
[1734802334017,0.051346,97412.0,97411.0,0.0876]
[1734802334715,0.3608,97418.0,97411.0,0.0876]
[1734802334920,0.42281713,97418.0,97411.0,0.0876]
[1734802335123,0.051343,97417.0,97411.0,0.0876]
[1734802335419,0.1226812,97422.0,97414.0,0.3608]
[1734802335610,0.1226812,97422.0,97418.0,0.3608]
[1734802336016,0.051342,97419.0,97418.0,0.3608]
[1734802336421,0.051342,97419.0,97416.0,0.009]
[1734802336622,0.10127844,97430.0,97411.0,0.0876]
[1734802336825,0.051342,97419.0,97418.0,0.007]
[1734802337517,0.051342,97419.0,97416.0,0.006]
[1734802337826,0.051343,97418.0,97416.0,0.006]
[1734802338629,0.3608,97417.0,97416.0,0.006]
[1734802338927,0.3608,97417.0,97416.0,0.014]
[1734802339318,0.3608,97417.0,97416.0,0.006]
[1734802340225,0.36088633,97417.0,97416.0,0.006]
[1734802340429,0.41222933,97417.0,97416.0,0.004]
[1734802341325,0.41222933,97417.0,97416.0,0.01]
[1734802341922,0.77302933,97417.0,97416.0,0.01]
[1734802342129,1.07302933,97417.0,97416.0,0.01]
[1734802343028,1.07302933,97417.0,97400.0,0.1]
[1734802343029,1.13160908,97417.0,97400.0,0.09559668]
[1734802343225,0.051352,97401.0,97400.0,0.09559668]
[1734802343627,0.412152,97401.0,97400.0,0.09559668]
[1734802344024,0.412152,97401.0,97400.0,0.10359668]
[1734802344436,0.4122255,97401.0,97400.0,0.11159668]
[1734802344931,0.051362,97382.0,97381.0,0.00011262]
[1734802345154,0.051362,97382.0,97356.0,0.3608]
[1734802345155,0.051371,97365.0,97357.0,0.0862]
[1734802346031,0.00011386,97365.0,97357.0,0.0862]
[1734802346235,0.051363,97380.0,97364.0,0.3608]
[1734802346436,0.051363,97380.0,97372.0,0.3608]
[1734802346640,0.051366,97374.0,97372.0,0.3608]
[1734802346829,0.3618,97382.0,97372.0,0.3608]
[1734802347223,7.886e-05,97381.0,97372.0,0.3608]
[1734802347426,7.886e-05,97381.0,97373.0,0.051366]
[1734802347636,7.886e-05,97381.0,97372.0,0.37132576]
[1734802347840,7.886e-05,97381.0,97380.0,0.3608]
[1734802348529,7.886e-05,97381.0,97380.0,0.4529]
[1734802348728,0.00407886,97381.0,97380.0,0.4529]
[1734802349334,0.05544086,97381.0,97380.0,0.4529]
[1734802349939,0.05544086,97381.0,97380.0,0.0921]
[1734802350135,0.05544086,97381.0,97373.0,0.0847]
[1734802350136,0.051366,97374.0,97373.0,0.0847]
[1734802350529,0.051366,97374.0,97372.0,0.3608]
[1734802350738,0.051372,97363.0,97360.0,0.0847]
[1734802350931,0.051372,97363.0,97360.0,0.4455]
[1734802351326,0.051373,97362.0,97360.0,0.4455]
[1734802351534,0.051373,97362.0,97360.0,0.0847]
[1734802352236,0.051373,97362.0,97360.0,0.0917]
[1734802352538,0.002,97363.0,97360.0,0.0987]
[1734802352744,0.001,97363.0,97360.0,0.0917]
[1734802353041,0.052372,97362.0,97360.0,0.0987]
[1734802353233,0.052372,97362.0,97360.0,0.0917]
[1734802353433,0.053372,97362.0,97360.0,0.0977]
[1734802354344,0.052372,97362.0,97360.0,0.0977]
[1734802354742,0.052372,97362.0,97360.0,0.0907]
[1734802354938,0.052372,97362.0,97360.0,0.013]
[1734802354939,0.053372,97362.0,97360.0,0.013]
[1734802355144,0.36088509,97361.0,97360.0,0.013]
[1734802355348,0.45088509,97361.0,97360.0,0.013]
[1734802355549,0.051384,97339.0,97337.0,0.1808]
[1734802356640,0.05138,97347.0,97337.0,0.1808]
[1734802357033,0.001,97339.0,97337.0,0.1878]
[1734802357633,0.051382,97344.0,97337.0,0.1808]
[1734802357837,0.051385,97338.0,97337.0,0.1878]
[1734802358243,0.05147009,97338.0,97337.0,0.1878]
[1734802359045,0.05247009,97338.0,97337.0,0.1878]
[1734802359948,0.051387,97334.0,97332.0,0.00154097]
[1734802360140,0.00108509,97338.0,97324.0,0.3608]
[1734802360339,0.051392,97325.0,97324.0,0.3608]
[1734802361547,0.001,97325.0,97324.0,0.412192]
[1734802361749,0.006,97325.0,97324.0,0.3608]
[1734802362140,0.001,97325.0,97324.0,0.3608]
[1734802362341,0.007,97325.0,97324.0,0.3608]
[1734802362848,0.12200101,97336.0,97334.0,0.051387]
[1734802363042,0.12200101,97336.0,97335.0,0.3608]
[1734802363639,8.509e-05,97338.0,97335.0,0.3608]
[1734802363839,0.051386,97337.0,97335.0,0.3608]
[1734802364238,0.008,97336.0,97335.0,0.3608]
[1734802364442,0.011,97336.0,97335.0,0.3608]
[1734802364851,0.003,97336.0,97335.0,0.3608]
[1734802365137,0.063386,97337.0,97335.0,0.3608]
[1734802365443,0.008,97336.0,97335.0,0.3608]
[1734802366645,0.011,97336.0,97335.0,0.3608]
[1734802367048,0.01,97336.0,97335.0,0.3618]
[1734802367544,0.051392,97325.0,97324.0,0.3608]
[1734802368945,0.12200101,97333.0,97320.0,0.00011067]
[1734802369149,0.051393,97322.0,97320.0,0.00011067]
[1734802370550,0.051396,97317.0,97309.0,0.23271815]
[1734802370850,0.10127844,97320.0,97309.0,0.23271815]
[1734802371251,0.3608,97319.0,97306.0,0.051402]
[1734802371447,0.051399,97312.0,97302.0,0.0867]
[1734802371652,0.3608,97319.0,97302.0,0.0867]
[1734802371850,0.0514,97310.0,97309.0,0.003]
[1734802372948,0.0514,97310.0,97309.0,0.004]
[1734802373352,0.0514,97310.0,97309.0,0.001]
[1734802373554,0.0514,97310.0,97306.0,0.003]
[1734802373857,0.0514,97310.0,97309.0,0.003]
[1734802374152,0.05148571,97310.0,97309.0,0.003]
[1734802374454,8.571e-05,97310.0,97300.0,0.40394316]
[1734802374646,0.10236415,97310.0,97309.0,0.005]
[1734802374849,0.05248571,97310.0,97309.0,0.005]
[1734802375357,0.00108571,97310.0,97309.0,0.005]
[1734802375544,0.00208571,97310.0,97309.0,0.005]
[1734802376350,0.00108571,97310.0,97309.0,0.006]
[1734802377555,0.00108571,97310.0,97309.0,0.0949]
[1734802380465,0.00108571,97310.0,97309.0,0.006]
[1734802382565,0.01166658,97310.0,97309.0,0.006]
[1734802383958,0.16443438,97310.0,97309.0,0.006]
[1734802384352,0.15385351,97310.0,97309.0,0.0574]
[1734802384760,0.15385351,97310.0,97309.0,0.006]
[1734802385066,0.20525351,97310.0,97309.0,0.006]
[1734802385257,0.15385351,97310.0,97309.0,0.006]
[1734802385869,0.00108571,97310.0,97309.0,0.006]
[1734802386161,0.00108571,97310.0,97309.0,0.0898]
[1734802386966,0.00108571,97310.0,97309.0,0.006]
[1734802388064,0.01170141,97310.0,97309.0,0.006]
[1734802390071,0.07976318,97310.0,97300.0,0.04258316]
[1734802390373,0.051404,97301.0,97300.0,0.04258316]
[1734802390760,0.412204,97301.0,97300.0,0.04258316]
[1734802391277,0.412204,97301.0,97300.0,0.04358316]
[1734802392366,0.413204,97301.0,97300.0,0.04358316]
[1734802392570,0.414204,97301.0,97300.0,0.04358316]
[1734802392774,0.6511455,97301.0,97300.0,0.04358316]
[1734802393374,0.6511455,97301.0,97300.0,0.01635285]
[1734802393675,0.65127485,97301.0,97300.0,0.01635285]
[1734802393859,0.65027485,97301.0,97300.0,0.01535285]
[1734802395470,0.56687016,97301.0,97300.0,0.01535285]
[1734802395776,0.20607016,97301.0,97300.0,0.01535285]
[1734802395978,0.15466616,97301.0,97300.0,0.01535285]
[1734802396972,0.00112935,97301.0,97300.0,0.01535285]
[1734802398572,0.00112935,97301.0,97300.0,4.285e-05]
[1734802399474,0.05266561,97301.0,97300.0,4.285e-05]
[1734802399666,0.05666561,97301.0,97270.0,0.500921]
[1734802399862,0.3608,97295.0,97270.0,0.4501]
[1734802400067,0.3608,97295.0,97283.0,0.412214]
[1734802400268,0.05866561,97301.0,97283.0,0.412214]
[1734802400475,0.05141,97290.0,97283.0,0.3608]
[1734802400876,0.10127844,97300.0,97283.0,0.3608]
[1734802401079,0.051413,97286.0,97283.0,0.3608]
[1734802401486,0.051413,97286.0,97277.0,0.051417]
[1734802401867,0.051414,97284.0,97270.0,0.4501]
[1734802402075,0.007,97290.0,97270.0,0.4501]
[1734802402390,0.005,97286.0,97270.0,0.4501]
[1734802403086,0.09214043,97282.0,97270.0,0.4501]
[1734802403474,0.09214043,97282.0,97271.0,0.05142]
[1734802403676,0.09214043,97282.0,97278.0,0.412216]
[1734802404182,0.09214043,97282.0,97278.0,0.3608]
[1734802404377,0.09214043,97282.0,97280.0,0.051415]
[1734802404581,0.09214043,97286.0,97284.0,0.051413]
[1734802405871,0.09214043,97286.0,97279.0,0.3608]
[1734802406081,0.01047186,97299.0,97279.0,0.3608]
[1734802406082,0.051415,97281.0,97279.0,0.3608]
[1734802406469,0.005,97286.0,97277.0,0.051417]
[1734802406800,0.051416,97279.0,97277.0,0.051417]
[1734802407377,0.051418,97276.0,97274.0,0.44994]
[1734802407575,0.051418,97276.0,97274.0,0.4493]
[1734802407770,0.051418,97276.0,97274.0,0.500719]
[1734802407974,0.003,97281.0,97277.0,0.051417]
[1734802408182,0.002,97286.0,97277.0,0.051417]
[1734802408379,0.051415,97281.0,97274.0,0.44986]
[1734802408682,0.051415,97281.0,97279.0,0.051416]
[1734802410280,0.09214043,97297.0,97274.0,0.44986]
[1734802410587,0.09214043,97297.0,97286.0,0.3608]
[1734802410777,0.10231617,97297.0,97286.0,0.3608]
[1734802411176,0.10231617,97297.0,97295.0,0.3608]
[1734802411383,0.051407,97296.0,97295.0,0.3608]
[1734802412384,0.051409,97292.0,97291.0,0.0893]
[1734802413986,0.054409,97292.0,97291.0,0.0893]
[1734802414190,0.061409,97292.0,97291.0,0.0893]
[1734802414779,0.055409,97292.0,97291.0,0.0893]
[1734802416392,0.057409,97292.0,97291.0,0.0893]
[1734802416890,0.061409,97292.0,97291.0,0.0893]
[1734802417275,0.054409,97292.0,97291.0,0.0893]
[1734802417481,0.061409,97292.0,97291.0,0.0893]
[1734802417789,0.059409,97292.0,97291.0,0.0893]
[1734802418383,0.15154943,97292.0,97291.0,0.0893]
[1734802418583,0.15054943,97292.0,97291.0,0.0893]
[1734802419280,0.15254943,97292.0,97291.0,0.0893]
[1734802419977,0.054409,97292.0,97291.0,0.0893]
[1734802420177,0.060409,97292.0,97291.0,0.0893]
[1734802420584,0.054409,97292.0,97291.0,0.0893]
[1734802420791,0.060409,97292.0,97291.0,0.0893]
[1734802421192,0.009,97292.0,97291.0,0.0893]
[1734802422782,0.09237424,97296.0,97295.0,0.051408]
[1734802422983,0.09237424,97296.0,97295.0,0.412208]
[1734802423187,0.00012935,97301.0,97295.0,0.3608]
[1734802423384,0.00012935,97301.0,97300.0,0.051405]
[1734802425792,0.00012935,97301.0,97299.0,0.66601892]
[1734802425986,0.05153335,97301.0,97299.0,0.66541892]
[1734802426488,0.05153335,97301.0,97300.0,0.001]
[1734802427590,0.00012935,97301.0,97300.0,0.001]
[1734802428594,0.00012935,97301.0,97300.0,0.2477968]
[1734802428793,0.05153335,97301.0,97300.0,0.2467968]
[1734802429694,0.05153335,97301.0,97300.0,0.2477968]
[1734802429887,0.05153335,97301.0,97300.0,0.002]
[1734802430097,0.05253335,97301.0,97300.0,0.004]
[1734802430491,0.05553335,97301.0,97299.0,0.3608]
[1734802430686,0.06153335,97301.0,97299.0,0.3608]
[1734802431685,0.06505534,97301.0,97299.0,0.3608]
[1734802431994,0.00912935,97301.0,97299.0,0.412205]
[1734802432491,0.05753435,97301.0,97299.0,0.412205]
[1734802432693,0.06053435,97301.0,97299.0,0.412205]
[1734802433185,0.06053435,97301.0,97299.0,0.3608]
[1734802433387,0.175,97300.0,97299.0,0.3608]
[1734802435195,0.004,97300.0,97299.0,0.412205]
[1734802435902,0.006,97300.0,97299.0,0.412205]
[1734802436595,0.004,97300.0,97299.0,0.412205]
[1734802436795,0.001,97300.0,97299.0,0.500305]
[1734802436990,0.005,97300.0,97299.0,0.500305]
[1734802438199,0.001,97300.0,97299.0,0.501305]
[1734802438801,0.001,97300.0,97299.0,0.99830825]
[1734802439001,0.001,97300.0,97299.0,0.99930825]
[1734802439790,0.001,97300.0,97299.0,1.35910825]
[1734802439996,0.00012935,97301.0,97299.0,1.35910825]
[1734802440196,0.051396,97317.0,97299.0,1.31070325]
[1734802440396,0.051397,97316.0,97314.0,0.3608]
[1734802441297,6.641e-05,97315.0,97314.0,0.3608]
[1734802441903,0.051399,97311.0,97310.0,0.24571825]
[1734802442897,0.051402,97305.0,97304.0,0.24571825]
[1734802444409,0.056402,97305.0,97304.0,0.29812125]
[1734802445115,0.051399,97311.0,97307.0,0.051401]
[1734802445415,6.641e-05,97315.0,97311.0,0.051399]
[1734802445597,0.05146341,97315.0,97311.0,0.051399]
[1734802445800,0.051398,97314.0,97311.0,0.051399]
[1734802445999,0.051398,97313.0,97311.0,0.051399]
[1734802446306,0.01051489,97315.0,97314.0,0.051398]
[1734802446507,6.641e-05,97315.0,97314.0,0.051398]
[1734802447705,0.051399,97312.0,97308.0,0.051401]
[1734802447908,0.01020792,97315.0,97309.0,0.24571825]
[1734802448307,0.00306641,97315.0,97314.0,0.051398]
[1734802448525,0.12284901,97322.0,97321.0,0.051394]
[1734802448711,0.15356126,97328.0,97321.0,0.412194]
[1734802448902,0.15356126,97328.0,97327.0,0.412191]
[1734802449507,0.21508786,97346.0,97327.0,0.81972368]
[1734802449712,0.12309745,97338.0,97333.0,0.412188]
[1734802449906,0.12309745,97338.0,97337.0,0.051385]
[1734802450106,0.051387,97334.0,97333.0,0.3608]
[1734802451702,0.055387,97334.0,97333.0,0.3608]
[1734802451904,0.004,97334.0,97333.0,0.3608]
[1734802452105,0.02316838,97334.0,97333.0,0.3608]
[1734802452315,0.013,97334.0,97333.0,0.3608]
[1734802452510,0.011,97334.0,97333.0,0.3608]
[1734802452710,0.007,97334.0,97333.0,0.3608]
[1734802452904,0.009,97334.0,97333.0,0.45442598]
[1734802454813,0.142073,97361.0,97333.0,0.45442598]
[1734802454814,0.0907,97361.0,97333.0,0.45442598]
[1734802455117,0.0907,97361.0,97360.0,0.051373]
[1734802455904,0.0987,97361.0,97357.0,0.3608]
[1734802456114,0.051374,97359.0,97357.0,0.3608]
[1734802456318,0.1077,97361.0,97359.0,0.051373]
[1734802456619,0.11800396,97361.0,97359.0,0.051373]
[1734802457121,0.017,97361.0,97359.0,0.051373]
[1734802457617,0.009,97361.0,97360.0,0.001]
[1734802457810,0.017,97361.0,97360.0,0.002]
[1734802458208,0.017,97361.0,97360.0,0.001]
[1734802458514,0.009,97361.0,97359.0,0.053373]
[1734802458723,0.007,97361.0,97360.0,0.001]
[1734802459417,0.007,97361.0,97360.0,0.051373]
[1734802459418,0.001,97361.0,97360.0,0.051373]
[1734802460009,0.052373,97361.0,97359.0,0.001]
[1734802460309,0.051374,97358.0,97357.0,0.3608]
[1734802461522,0.055374,97358.0,97357.0,0.3608]
[1734802461914,0.051374,97358.0,97357.0,0.3608]
[1734802462130,0.062374,97358.0,97357.0,0.3618]
[1734802462617,0.053374,97358.0,97357.0,0.3608]
[1734802462816,0.057374,97358.0,97357.0,0.3608]
[1734802463822,0.051378,97351.0,97347.0,0.36136]
[1734802464016,0.0864,97350.0,97347.0,0.3608]
[1734802464314,0.0864,97350.0,97345.0,0.051381]
[1734802464707,0.0864,97350.0,97337.0,0.051385]
[1734802464708,0.05138,97348.0,97337.0,0.051385]
[1734802464912,0.05138,97348.0,97336.0,0.3608]
[1734802465424,0.1708,97350.0,97336.0,0.3608]
[1734802465712,0.051381,97346.0,97345.0,0.004]
[1734802466107,0.1708,97350.0,97336.0,0.3608]